bitfinex/quotes_SOLUSD_20241231
["timestamp","ask_amount","ask_price","bid_price","bid_amount"]
[1735667758750,23.776884,196.02,195.96,15.64638619]
[1735667760330,15.64638619,196.02,195.95,15.64638619]
[1735667760835,23.776884,196.02,195.96,15.64638619]
[1735667761236,23.776884,196.0,195.96,15.64638619]
[1735667762054,23.776884,196.02,195.96,15.64638619]
[1735667762214,23.776884,196.02,195.97,15.64638619]
[1735667762416,15.64638619,196.04,195.97,15.64638619]
[1735667762631,23.776884,196.03,195.97,15.64638619]
[1735667763212,23.776884,196.02,195.92,18.8686]
[1735667763418,40.70232921,196.02,195.96,15.64638619]
[1735667763722,40.70232921,196.02,195.92,18.8686]
[1735667763723,15.64638619,196.0,195.92,6.1088]
[1735667763921,15.64638619,196.0,195.93,15.64638619]
[1735667764330,10.0290529,196.0,195.93,10.0290529]
[1735667765248,10.0290529,196.01,195.94,10.0290529]
[1735667765432,20.0,196.05,195.94,10.0290529]
[1735667765433,23.776884,196.02,195.94,10.0290529]
[1735667765609,10.0290529,196.01,195.94,10.0290529]
[1735667766241,23.776884,195.99,195.93,15.67022413]
[1735667766451,23.776884,195.99,195.94,15.67022413]
[1735667766737,25.05608067,196.0,195.94,15.67022413]
[1735667766935,40.7263048,196.0,195.93,15.67022413]
[1735667767238,23.776884,196.0,195.95,15.67022413]
[1735667767417,15.67022413,196.02,195.95,15.67022413]
[1735667768139,23.776884,196.0,195.95,15.67022413]
[1735667768442,23.776884,196.0,195.92,6.1088]
[1735667768743,39.44710813,196.02,195.95,15.67022413]
[1735667769238,23.776884,196.02,195.95,15.67022413]
[1735667769744,39.44710813,196.02,195.95,15.67022413]
[1735667769917,1.2791453,196.01,195.95,15.67022413]
[1735667770125,23.776884,196.0,195.95,15.67022413]
[1735667770330,23.776884,196.0,195.94,15.67022413]
[1735667770843,23.776884,196.02,195.96,15.67022413]
[1735667771136,6.5061,196.08,196.0,15.67022413]
[1735667771137,1.5061,196.08,196.0,15.67022413]
[1735667771443,15.67022413,196.07,196.0,15.67022413]
[1735667771926,1.2788775,196.06,196.0,15.67022413]
[1735667772125,1.2788775,196.06,195.95,20.0]
[1735667772332,23.776884,196.05,195.99,15.67022413]
[1735667772539,23.776884,196.05,196.0,15.67022413]
[1735667772735,23.776884,196.06,196.0,15.67022413]
[1735667773340,22.93181665,196.09,196.03,15.67022413]
[1735667773523,15.67022413,196.1,196.04,15.67022413]
[1735667773724,15.67022413,196.09,196.03,15.67022413]
[1735667773923,23.776884,196.08,196.04,15.67022413]
[1735667774124,23.776884,196.08,196.03,15.67022413]
[1735667774334,23.776884,196.09,196.03,15.67022413]
[1735667774733,23.776884,196.06,196.0,15.67022413]
[1735667774941,39.44710813,196.06,195.99,15.67022413]
[1735667775945,12.7479,196.11,195.98,1.5952]
[1735667775946,1.27873044,196.05,196.01,15.67022413]
[1735667776143,1.27873044,196.05,196.03,15.67022413]
[1735667776345,23.776884,196.08,196.03,15.67022413]
[1735667776538,23.776884,196.08,196.02,15.67022413]
[1735667776733,15.67022413,196.08,196.02,15.67022413]
[1735667776938,15.67022413,196.08,196.01,15.67022413]
[1735667777348,23.776884,196.06,196.01,15.67022413]
[1735667778138,15.67022413,196.08,196.01,15.67022413]
[1735667779130,23.776884,196.06,196.01,15.67022413]
[1735667779743,15.67022413,196.08,196.01,15.67022413]
[1735667780655,15.67022413,196.07,196.01,15.67022413]
[1735667780857,23.776884,196.06,196.01,15.67022413]
[1735667781353,23.776884,196.06,196.0,15.67022413]
[1735667781848,15.67022413,196.03,195.96,15.67022413]
[1735667782156,15.67022413,196.01,195.95,15.67022413]
[1735667782329,15.67022413,196.02,195.95,15.67022413]
[1735667782534,15.67022413,196.03,195.97,15.67022413]
[1735667783436,1.27908416,196.02,195.97,15.67022413]
[1735667783637,1.27908416,196.02,195.94,12.759]
[1735667783833,1.27908416,196.02,195.97,15.67022413]
[1735667784039,1.27908416,196.01,195.97,15.67022413]
[1735667784856,15.67022413,196.06,195.99,15.67022413]
[1735667785045,23.776884,196.05,195.99,15.67022413]
[1735667785247,39.44710813,196.05,195.98,15.67022413]
[1735667785444,23.776884,196.03,195.98,15.67022413]
[1735667785955,1.27897029,196.04,195.99,15.67022413]
[1735667786139,1.27897029,196.02,195.99,15.67022413]
[1735667786334,1.27897029,196.02,195.99,10.02317743]
[1735667786746,23.776884,196.04,195.99,10.02317743]
[1735667787434,1.27897029,196.03,195.99,10.02317743]
[1735667787846,1.27897029,196.03,195.98,10.02317743]
[1735667788053,1.27897029,196.02,195.98,10.02317743]
[1735667788253,1.27897029,196.02,195.99,10.02317743]
[1735667788629,23.776884,196.05,195.99,10.02317743]
[1735667788955,10.02317743,196.06,195.99,10.02317743]
[1735667789271,1.27892189,196.04,195.99,20.0]
[1735667789865,23.776884,196.09,196.03,10.02317743]
[1735667790034,10.02317743,196.1,195.99,20.0]
[1735667790239,10.02317743,196.11,196.04,10.02317743]
[1735667790438,10.02317743,196.1,196.04,10.02317743]
[1735667790633,1.27847263,196.09,196.05,10.02317743]
[1735667791031,30.02317743,196.11,196.05,10.02317743]
[1735667791237,23.776884,196.1,196.05,10.02317743]
[1735667791693,23.776884,196.1,196.04,10.02317743]
[1735667791878,23.776884,196.07,196.02,8.1641]
[1735667792048,10.02317743,196.06,196.0,10.02317743]
[1735667792246,10.02317743,196.06,195.99,10.02317743]
[1735667792759,23.776884,196.1,196.02,10.02317743]
[1735667792947,23.776884,196.07,196.02,10.02317743]
[1735667793863,33.80006143,196.07,196.01,10.02317743]
[1735667794161,23.776884,196.05,196.0,10.02317743]
[1735667794663,10.02317743,196.07,196.01,10.02317743]
[1735667795465,10.02317743,196.07,196.0,10.02317743]
[1735667795666,23.776884,196.05,196.0,10.02317743]
[1735667796061,1.2787745,196.04,196.0,10.02317743]
[1735667796856,10.02317743,196.07,196.0,10.02317743]
[1735667797053,10.02317743,196.07,196.01,10.02317743]
[1735667797249,10.02317743,196.08,196.01,10.02317743]
[1735667797457,1.27875672,196.06,196.01,10.02317743]
[1735667797659,23.776884,196.05,195.99,10.02317743]
[1735667797971,25.05564072,196.05,196.0,10.02317743]
[1735667798361,25.05564072,196.05,196.01,10.02317743]
[1735667798546,1.27875672,196.04,196.01,10.02317743]
[1735667799067,10.02317743,196.07,196.01,10.02317743]
[1735667799881,23.776884,196.1,195.97,1.5171]
[1735667799882,33.80006143,196.03,195.97,1.5171]
[1735667800071,10.02317743,196.0,195.94,10.02317743]
[1735667800769,1.27875853,196.02,195.94,10.02317743]
[1735667800955,1.27875853,196.02,195.93,6.647]
[1735667800956,1.27875853,195.99,195.95,10.02317743]
[1735667801968,1.27875853,195.98,195.97,10.02317743]
[1735667802356,23.776884,196.04,195.97,10.02317743]
[1735667802967,23.776884,196.04,195.99,10.02317743]
[1735667803165,10.02317743,196.05,195.99,10.02317743]
[1735667803369,1.27899947,196.03,196.0,10.02317743]
[1735667803978,1.27899947,196.02,195.96,12.7575]
[1735667804282,1.27899947,196.02,195.97,10.02317743]
[1735667804576,1.27899947,196.01,195.96,10.02317743]
[1735667804988,10.02317743,195.99,195.92,1.5171]
[1735667805189,10.02317743,195.99,195.92,11.54027743]
[1735667805666,11.3021769,196.0,195.93,10.02317743]
[1735667805869,1.27899947,195.98,195.96,10.02317743]
[1735667806174,1.27899947,195.98,195.97,10.02317743]
[1735667806381,15.66494966,196.03,195.97,15.66494966]
[1735667806557,15.66494966,196.03,195.96,15.66494966]
[1735667806978,16.94394913,196.02,195.95,15.66494966]
[1735667807187,1.27899947,196.02,195.97,15.66494966]
[1735667807490,1.27899947,196.01,195.97,15.66494966]
[1735667808174,1.27899947,196.0,195.97,15.66494966]
[1735667808961,1.27899947,195.99,195.97,15.66494966]
[1735667809165,1.27899947,195.99,195.96,15.66494966]
[1735667809592,1.27899947,195.98,195.96,15.66494966]
[1735667810104,1.27899947,196.02,195.96,15.66494966]
[1735667810392,1.27899947,196.02,196.0,15.66494966]
[1735667810596,1.27899947,196.02,196.01,15.66494966]
[1735667810766,23.776884,196.07,196.01,15.66494966]
[1735667811171,15.66494966,196.08,196.01,15.66494966]
[1735667811465,1.27894043,196.06,196.02,15.66494966]
[1735667812065,15.66494966,196.08,196.01,15.66494966]
[1735667813462,15.66494966,196.06,195.99,15.66494966]
[1735667814207,15.66494966,196.05,195.97,6.1959]
[1735667814394,15.66494966,196.05,195.98,15.66494966]
[1735667814772,15.66494966,196.05,195.99,15.66494966]
[1735667815478,15.66494966,196.05,195.98,15.66494966]
[1735667815802,1.27894842,196.04,195.98,15.66494966]
[1735667815999,1.27894842,196.04,195.99,15.66494966]
[1735667816386,1.27894842,196.03,195.99,15.66494966]
[1735667816883,1.27894842,196.03,195.97,6.1959]
[1735667817084,39.441833,196.09,195.97,21.86084966]
[1735667817085,1.27894842,196.02,195.97,21.86084966]
[1735667817892,1.27894842,196.01,195.98,15.66494966]
[1735667818412,1.27894842,196.04,195.98,15.66494966]
[1735667819116,23.776884,196.02,195.97,15.66494966]
[1735667819414,1.27894842,196.03,195.92,17.18204966]
[1735667819415,15.66494966,195.99,195.92,17.18204966]
[1735667819814,1.27894842,195.98,195.92,17.18204966]
[1735667820515,1.27894842,195.98,195.93,15.66494966]
[1735667820692,1.27894842,195.97,195.93,15.66494966]
[1735667821189,1.27894842,195.99,195.93,15.66494966]
[1735667821895,1.27894842,195.98,195.93,15.66494966]
[1735667822610,15.66494966,196.0,195.93,15.66494966]
[1735667822611,1.27894842,195.97,195.93,15.66494966]
[1735667822912,1.27894842,195.97,195.96,15.66494966]
[1735667823418,1.27894842,196.02,195.96,15.66494966]
[1735667823602,15.66494966,196.01,195.94,15.66494966]
[1735667823786,1.27894842,196.01,195.95,15.66494966]
[1735667823995,1.27894842,196.01,195.96,15.66494966]
[1735667824203,1.27894842,196.0,195.96,15.66494966]
[1735667825017,1.27894842,196.02,195.96,15.66494966]
[1735667825314,1.27894842,196.02,195.95,15.66494966]
[1735667825503,1.27894842,196.01,195.95,15.66494966]
[1735667826117,1.27894842,196.01,195.93,12.7596]
[1735667826118,16.94389808,196.01,195.94,15.66494966]
[1735667826410,15.66494966,195.99,195.92,1.5171]
[1735667826590,15.66494966,195.99,195.9,18.9809]
[1735667826794,1.27894842,195.98,195.92,15.66494966]
[1735667826990,1.27894842,195.98,195.94,15.66494966]
[1735667827236,1.27894842,195.98,195.95,15.66494966]
[1735667827518,35.66494966,196.02,195.94,15.66494966]
[1735667828221,1.27894842,196.01,195.95,15.66494966]
[1735667828425,1.27894842,196.01,195.96,10.02667913]
[1735667828731,1.27894842,196.01,195.98,10.02667913]
[1735667829024,20.77060156,196.08,195.98,10.02667913]
[1735667829025,1.27894842,196.0,195.98,10.02667913]
[1735667829832,1.27894842,196.04,195.98,10.02667913]
[1735667830328,1.27894842,196.04,196.01,10.02667913]
[1735667830623,1.27894842,196.03,195.97,6.2197]
[1735667830827,1.27894842,196.03,196.02,10.02667913]
[1735667831636,1.27894842,196.08,196.02,10.02667913]
[1735667832296,1.27894842,196.07,196.02,10.02667913]
[1735667832699,1.27894842,196.07,196.01,10.02667913]
[1735667832907,1.27894842,196.06,196.01,10.02667913]
[1735667833226,1.27894842,196.06,196.02,10.02667913]
[1735667833429,1.27894842,196.05,196.02,10.02667913]
[1735667833601,1.27894842,196.05,196.01,10.02667913]
[1735667834037,10.02667913,196.08,196.01,10.02667913]
[1735667834602,10.02667913,196.07,196.01,10.02667913]
[1735667834835,1.27877878,196.07,196.01,10.02667913]
[1735667835333,1.27877878,196.06,196.01,10.02667913]
[1735667835498,1.27877878,196.06,196.04,10.02667913]
[1735667836138,1.27877878,196.05,196.03,20.0]
[1735667836604,10.02667913,196.13,196.03,20.0]
[1735667836805,10.02667913,196.13,196.07,10.02667913]
[1735667837115,23.776884,196.13,196.07,10.02667913]
[1735667837447,1.27860317,196.12,196.07,10.02667913]
[1735667837729,1.27860317,196.12,196.06,10.02667913]
[1735667838029,1.27860317,196.11,196.06,10.02667913]
[1735667838430,11.3052823,196.11,196.04,10.02667913]
[1735667838632,11.3052823,196.11,195.97,6.2197]
[1735667838633,10.02667913,196.07,196.0,10.02667913]
[1735667839006,20.0,196.1,196.02,10.02667913]
[1735667839240,1.537,196.14,196.05,10.02667913]
[1735667839411,7.96682028,196.19,196.08,10.02667913]
[1735667839604,10.02667913,196.15,196.08,10.02667913]
[1735667839845,8.02050156,196.16,196.09,10.02667913]
[1735667840340,8.02050156,196.16,196.08,10.02667913]
[1735667840539,10.02667913,196.15,196.08,10.02667913]
[1735667840739,10.02667913,196.14,196.08,10.02667913]
[1735667841246,23.776884,196.18,196.1,10.02667913]
[1735667841460,30.02667913,196.16,196.1,10.02667913]
[1735667841637,8.02050156,196.23,196.13,10.02667913]
[1735667841947,16.31722359,196.24,196.14,10.02667913]
[1735667842252,16.31722359,196.24,196.11,20.0]
[1735667842253,18.04718069,196.24,196.11,20.0]
[1735667842542,18.04718069,196.24,196.17,10.02667913]
[1735667842749,10.02667913,196.21,196.15,10.02667913]
[1735667843333,15.63740156,196.29,196.18,10.02667913]
[1735667843546,20.0,196.26,196.18,10.02667913]
[1735667843745,10.02667913,196.26,196.19,10.02667913]
[1735667844039,20.0,196.26,196.2,10.02667913]
[1735667844220,20.0,196.26,196.19,10.02667913]
[1735667844426,15.62869633,196.25,196.18,15.62869633]
[1735667844630,15.62869633,196.22,196.16,17.18539633]
[1735667845348,15.62869633,196.2,196.13,15.62869633]
[1735667845557,15.62869633,196.21,196.14,15.62869633]
[1735667845916,15.62869633,196.22,196.15,15.62869633]
[1735667846153,15.62869633,196.22,196.16,15.62869633]
[1735667846520,25.313884,196.25,196.17,15.62869633]
[1735667846521,15.62869633,196.24,196.17,15.62869633]
[1735667847739,23.58820779,196.34,196.23,15.62869633]
[1735667847922,15.62869633,196.3,196.23,15.62869633]
[1735667848324,15.62869633,196.29,196.23,15.62869633]
[1735667848661,15.62869633,196.29,196.22,15.62869633]
[1735667849178,15.62869633,196.3,196.23,15.62869633]
[1735667849376,15.62869633,196.31,196.24,15.62869633]
[1735667849559,6.558,196.34,196.23,15.62869633]
[1735667849560,15.62869633,196.3,196.23,15.62869633]
[1735667849749,15.62869633,196.28,196.22,15.62869633]
[1735667849952,15.62869633,196.28,196.21,22.24419633]
[1735667851176,15.62869633,196.23,196.17,6.6155]
[1735667851477,15.62869633,196.22,196.17,6.6155]
[1735667851680,15.62869633,196.23,196.17,22.24419633]
[1735667851967,15.62869633,196.24,196.17,22.24419633]
[1735667852177,15.62869633,196.25,196.19,15.62869633]
[1735667852346,15.62869633,196.27,196.2,15.62869633]
[1735667852746,15.62869633,196.29,196.22,15.62869633]
[1735667852963,15.62869633,196.27,196.2,15.62869633]
[1735667853475,15.62869633,196.26,196.19,15.62869633]
[1735667853653,15.62869633,196.24,196.17,6.6155]
[1735667853969,15.62869633,196.28,196.21,15.62869633]
[1735667854171,15.62869633,196.26,196.2,15.62869633]
[1735667854387,15.62869633,196.26,196.19,15.62869633]
[1735667854751,15.62869633,196.27,196.2,15.62869633]
[1735667855180,15.62869633,196.26,196.19,15.62869633]
[1735667855358,15.62869633,196.26,196.17,6.6155]
[1735667855359,15.62869633,196.24,196.17,22.24419633]
[1735667856376,15.62869633,196.22,196.17,6.6155]
[1735667856577,15.62869633,196.19,196.12,15.62869633]
[1735667856882,15.62869633,196.16,196.11,6.6155]
[1735667857087,15.62869633,196.15,196.1,1.5061]
[1735667857381,15.62869633,196.16,196.1,1.5061]
[1735667857689,23.776884,196.19,196.1,1.5061]
[1735667857690,15.62869633,196.17,196.1,17.13479633]
[1735667857980,15.62869633,196.15,196.1,1.5061]
[1735667858147,15.62869633,196.16,196.09,15.62869633]
[1735667859046,15.62869633,196.17,196.1,15.62869633]
[1735667859867,15.62869633,196.18,196.1,15.62869633]
[1735667860157,15.62869633,196.16,196.09,15.62869633]
[1735667860583,15.62869633,196.15,196.08,15.62869633]
[1735667860884,15.62869633,196.14,196.07,22.24419633]
[1735667862349,15.62869633,196.13,196.07,6.6155]
[1735667862763,15.62869633,196.12,196.05,17.13479633]
[1735667863068,15.62869633,196.11,196.05,1.5061]
[1735667864294,12.7447,196.16,196.05,17.13479633]
[1735667864295,15.62869633,196.12,196.05,17.13479633]
[1735667864684,15.62869633,196.13,196.06,15.62869633]
[1735667864894,15.62869633,196.15,196.08,15.62869633]
[1735667865485,15.62869633,196.14,196.07,15.62869633]
[1735667865795,15.62869633,196.09,196.03,6.6486]
[1735667865998,43.776884,196.13,196.03,6.6486]
[1735667866300,15.62869633,196.08,196.03,6.6486]
[1735667866470,15.62869633,196.07,196.0,17.14129633]
[1735667867594,15.62869633,196.06,196.0,1.5126]
[1735667867808,15.62869633,196.05,196.0,1.5126]
[1735667868096,39.40558033,196.1,196.0,17.14129633]
[1735667868097,15.62869633,196.07,196.0,17.14129633]
[1735667868401,15.62869633,196.09,196.01,15.62869633]
[1735667868565,15.62869633,196.08,196.01,15.62869633]
[1735667868765,15.62869633,196.07,196.0,17.14129633]
[1735667868992,15.62869633,196.06,196.0,1.5126]
[1735667869368,15.62869633,196.07,196.0,17.14129633]
[1735667870384,15.62869633,196.07,196.0,1.5126]
[1735667871098,15.62869633,196.06,196.0,1.5126]
[1735667872200,23.776884,196.06,196.0,1.5126]
[1735667872377,23.776884,196.06,196.0,17.14129633]
[1735667872901,23.776884,196.06,196.0,1.5126]
[1735667873402,15.62869633,196.08,196.01,15.62869633]
[1735667873981,15.62869633,196.07,196.0,17.14129633]
[1735667874296,15.62869633,196.06,196.0,1.5126]
[1735667874489,15.62869633,196.05,196.0,1.5126]
[1735667875712,15.62869633,196.06,196.0,1.5126]
[1735667876711,15.62869633,196.05,196.0,1.5126]
[1735667876916,15.62869633,196.06,196.0,17.14129633]
[1735667877214,15.62869633,196.09,196.02,15.62869633]
[1735667877512,15.62869633,196.05,196.0,1.5126]
[1735667879432,15.62869633,196.04,195.98,6.6486]
[1735667879737,15.62869633,196.01,195.98,6.6486]
[1735667880238,15.62869633,196.01,195.95,1.6383]
[1735667880440,15.62869633,196.0,195.95,1.6383]
[1735667880613,15.62869633,196.01,195.95,1.6383]
[1735667880814,15.62869633,196.0,195.95,1.6383]
[1735667881038,15.62869633,195.99,195.95,1.6383]
[1735667881637,15.62869633,196.01,195.95,17.26699633]
[1735667881807,15.62869633,196.02,195.95,17.26699633]
[1735667882212,15.62869633,196.02,195.96,15.62869633]
[1735667882416,15.62869633,196.04,195.97,15.62869633]
[1735667883245,15.62869633,196.03,195.96,15.62869633]
[1735667883536,15.62869633,196.04,195.97,15.62869633]
[1735667883835,15.62869633,196.03,195.96,15.62869633]
[1735667884041,23.776884,196.02,195.96,15.62869633]
[1735667884226,23.776884,196.02,195.95,1.6383]
[1735667884227,15.62869633,196.0,195.95,1.6383]
[1735667884612,15.62869633,196.01,195.95,1.6383]
[1735667885112,15.62869633,196.04,195.97,15.62869633]
[1735667885416,15.62869633,196.04,195.98,15.62869633]
[1735667885832,19.50862203,196.1,195.99,15.62869633]
[1735667886139,15.62869633,196.07,196.0,15.62869633]
[1735667886545,23.776884,196.06,195.99,15.62869633]
[1735667886926,15.62869633,196.07,196.0,15.62869633]
[1735667888731,23.776884,196.07,196.01,15.62869633]
[1735667888929,39.40558033,196.07,196.0,15.62869633]
[1735667889845,39.40558033,196.07,195.99,35.62869633]
[1735667890351,15.62869633,196.08,196.01,15.62869633]
[1735667890654,15.62869633,196.1,196.02,15.62869633]
[1735667891061,15.62869633,196.1,196.03,15.62869633]
[1735667891235,23.776884,196.09,196.03,15.62869633]
[1735667891431,12.7455,196.15,196.05,15.62869633]
[1735667891638,15.62869633,196.14,196.06,15.62869633]
[1735667892254,39.40558033,196.13,196.05,15.62869633]
[1735667892571,15.62869633,196.14,196.07,15.62869633]
[1735667893259,15.62869633,196.16,196.08,15.62869633]
[1735667893463,15.62869633,196.16,196.09,15.62869633]
[1735667893660,23.776884,196.15,196.09,15.62869633]
[1735667893880,39.40558033,196.15,196.08,15.62869633]
[1735667894085,15.62869633,196.12,196.05,15.62869633]
[1735667894265,15.62869633,196.11,196.04,15.62869633]
[1735667894466,15.62869633,196.12,196.05,15.62869633]
[1735667897273,15.62869633,196.14,196.07,15.62869633]
[1735667897458,15.62869633,196.16,196.09,15.62869633]
[1735667898079,15.62869633,196.19,196.11,15.62869633]
[1735667898654,15.62869633,196.18,196.11,15.62869633]
[1735667898853,15.62869633,196.2,196.13,15.62869633]
[1735667899067,39.28826601,196.27,196.14,15.62869633]
[1735667899068,15.62869633,196.22,196.14,15.62869633]
[1735667899269,15.62869633,196.22,196.15,15.62869633]
[1735667899462,15.62869633,196.22,196.14,15.62869633]
[1735667899662,15.62869633,196.21,196.14,15.62869633]
[1735667899871,15.62869633,196.21,196.13,22.27599633]
[1735667900081,15.62869633,196.2,196.13,22.27599633]
[1735667900274,15.62869633,196.2,196.13,6.6473]
[1735667901373,15.62869633,196.2,196.13,22.27599633]
[1735667902583,15.62869633,196.21,196.13,22.27599633]
[1735667902985,15.62869633,196.2,196.13,22.27599633]
[1735667903180,15.62869633,196.21,196.13,22.27599633]
[1735667905887,23.776884,196.26,196.13,6.6473]
[1735667906180,15.62869633,196.22,196.15,15.62869633]
[1735667906577,15.62869633,196.23,196.16,15.62869633]
[1735667907183,15.62869633,196.23,196.15,15.62869633]
[1735667908377,15.62869633,196.24,196.16,15.62869633]
[1735667908971,15.62869633,196.24,196.17,35.62869633]
[1735667910067,15.62869633,196.24,196.17,20.0]
[1735667910562,15.62869633,196.24,196.17,35.62869633]
[1735667911777,15.62869633,196.25,196.17,35.62869633]
[1735667912278,15.62869633,196.27,196.2,15.62869633]
[1735667912482,15.62869633,196.28,196.21,15.62869633]
[1735667912678,15.62869633,196.28,196.22,6.5889]
[1735667912880,1.5503,196.33,196.22,6.5889]
[1735667912881,15.62869633,196.3,196.22,22.21759633]
[1735667913078,15.62869633,196.3,196.23,15.62869633]
[1735667913373,15.62869633,196.31,196.24,15.62869633]
[1735667914091,15.62869633,196.3,196.23,15.62869633]
[1735667915378,15.62869633,196.31,196.24,15.62869633]
[1735667915573,15.62869633,196.3,196.23,15.62869633]
[1735667915889,12.7319,196.36,196.22,6.5889]
[1735667915890,15.62869633,196.28,196.22,6.5889]
[1735667916094,15.62869633,196.29,196.22,22.21759633]
[1735667916277,15.62869633,196.31,196.23,15.62869633]
[1735667916770,15.62869633,196.3,196.22,22.21759633]
[1735667917172,15.62869633,196.27,196.22,6.5889]
[1735667917388,23.776884,196.32,196.22,6.5889]
[1735667917590,15.62869633,196.28,196.22,6.5889]
[1735667918191,15.62869633,196.29,196.22,22.21759633]
[1735667918580,15.62869633,196.29,196.22,6.5889]
[1735667918989,15.62869633,196.3,196.23,15.62869633]
[1735667920780,15.62869633,196.31,196.23,15.62869633]
[1735667920971,15.62869633,196.3,196.23,15.62869633]
[1735667921590,15.62869633,196.31,196.24,15.62869633]
[1735667923106,15.62869633,196.32,196.25,35.62869633]
[1735667923289,15.62869633,196.35,196.27,15.62869633]
[1735667923684,15.62869633,196.35,196.28,1.6164]
[1735667924002,15.628697,196.39,196.3,15.62869633]
[1735667924180,15.628697,196.39,196.29,6.481]
[1735667924181,15.62869633,196.38,196.31,15.62869633]
[1735667924693,31.25739333,196.39,196.32,15.62869633]
[1735667924892,15.62869633,196.38,196.32,15.62869633]
[1735667925388,15.62869633,196.38,196.31,15.62869633]
[1735667925905,39.40558033,196.37,196.3,15.62869633]
[1735667926083,15.62869633,196.34,196.29,6.481]
[1735667927006,39.40558033,196.33,196.29,6.481]
[1735667927186,23.776884,196.33,196.29,6.481]
[1735667927602,15.62869633,196.34,196.29,6.481]
[1735667928089,39.40558033,196.33,196.29,6.481]
[1735667928696,15.62869633,196.33,196.29,6.481]
[1735667928900,15.62869633,196.33,196.28,1.6164]
[1735667929587,15.62869633,196.34,196.28,1.6164]
[1735667930405,15.62869633,196.35,196.28,17.24509633]
[1735667930990,15.62869633,196.37,196.29,15.62869633]
[1735667931305,15.62869633,196.37,196.3,15.62869633]
[1735667931613,15.62869633,196.38,196.31,15.62869633]
[1735667931815,23.776884,196.37,196.31,15.62869633]
[1735667932114,39.40558033,196.37,196.3,15.62869633]
[1735667933409,39.40558033,196.37,196.29,15.62869633]
[1735667934213,15.62869633,196.36,196.29,15.62869633]
[1735667934715,23.776884,196.37,196.31,15.62869633]
[1735667935216,15.62869633,196.37,196.3,15.62869633]
[1735667935425,23.776884,196.37,196.31,15.62869633]
[1735667935914,15.62869633,196.37,196.3,15.62869633]
[1735667936090,23.776884,196.4,196.3,15.62869633]
[1735667936296,15.62869633,196.39,196.31,15.62869633]
[1735667936619,35.62869633,196.41,196.34,22.10969633]
[1735667936989,12.25840556,196.45,196.37,15.62869633]
[1735667937189,15.62869633,196.45,196.38,15.62869633]
[1735667937391,15.62869633,196.45,196.37,15.62869633]
[1735667937608,15.62869633,196.44,196.37,15.62869633]
[1735667937922,15.62869633,196.43,196.36,15.62869633]
[1735667938493,15.62869633,196.44,196.37,15.62869633]
[1735667938702,15.62869633,196.45,196.38,15.62869633]
[1735667939810,15.62869633,196.46,196.38,15.62869633]
[1735667940115,23.776884,196.45,196.39,15.62869633]
[1735667940304,15.62869633,196.46,196.39,15.62869633]
[1735667940708,8.40412338,196.5,196.35,1.649]
[1735667940709,15.62869633,196.43,196.35,1.649]
[1735667940910,15.62869633,196.44,196.36,15.62869633]
[1735667941518,15.62869633,196.44,196.37,15.62869633]
[1735667942216,43.776884,196.46,196.38,15.62869633]
[1735667942417,15.62869633,196.45,196.38,15.62869633]
[1735667942723,15.62869633,196.44,196.37,15.62869633]
[1735667944035,23.776884,196.41,196.35,17.27769633]
[1735667944335,15.62869633,196.41,196.35,1.649]
[1735667944632,32.7258,196.46,196.36,15.62869633]
[1735667944633,15.62869633,196.43,196.36,15.62869633]
[1735667944834,15.62869633,196.42,196.35,17.27769633]
[1735667945203,15.62869633,196.43,196.36,15.62869633]
[1735667946701,15.62869633,196.45,196.37,15.62869633]
[1735667946996,15.62869633,196.43,196.35,1.649]
[1735667947319,15.62869633,196.46,196.39,15.62869633]
[1735667947526,15.62869633,196.46,196.38,15.62869633]
[1735667948108,15.62869633,196.46,196.39,15.62869633]
[1735667948326,15.62869633,196.46,196.38,15.62869633]
[1735667951727,15.62869633,196.47,196.4,15.62869633]
[1735667952123,15.62869633,196.46,196.39,15.62869633]
[1735667952324,15.62869633,196.45,196.38,15.62869633]
[1735667952718,15.62869633,196.47,196.4,15.62869633]
[1735667953833,15.62869633,196.46,196.39,15.62869633]
[1735667955536,15.62869633,196.45,196.38,28.35869633]
[1735667955831,15.62869633,196.46,196.39,15.62869633]
[1735667956047,15.62869633,196.47,196.4,15.62869633]
[1735667956354,9.98172614,196.46,196.39,9.98172614]
[1735667956848,9.98172614,196.45,196.38,22.71172614]
[1735667957015,9.98172614,196.44,196.37,9.98172614]
[1735667957204,9.98172614,196.43,196.36,9.98172614]
[1735667957409,9.98172614,196.44,196.37,9.98172614]
[1735667959119,9.98172614,196.43,196.36,9.98172614]
[1735667959934,9.98172614,196.45,196.38,9.98172614]
[1735667960138,23.776884,196.44,196.38,9.98172614]
[1735667960933,9.98172614,196.43,196.36,9.98172614]
[1735667961310,9.98172614,196.43,196.37,9.98172614]
[1735667961531,33.75861014,196.44,196.37,9.98172614]
[1735667961906,9.98172614,196.43,196.36,9.98172614]
[1735667962127,9.98172614,196.42,196.35,1.649]